Cogmind - Beta 11.1 @@@ ROGUE MODE // 2022.07.03 @ 09:56:29 Player: Jezoensis Result: Destroyed by as-34149 with Assembled F-torch Performance ------------- Evolutions (0) 0 Regions Visited (2) 400 Robots Destroyed (13) 65 Value Destroyed (329) 329 Prototype IDs (3) 60 Alien Tech Used (0) 0 Bonus (0) 0 TOTAL SCORE: 854 Bonus ------- None Cogmind --------- Core Integrity 0/250 Matter 280/300 Energy 100/100 System Corruption 0% Temperature Cool (20) Movement Core (200) Ox3 Location -10/Mines Parts ------- > --- POWER (1) -------- (None) > --- PROPULSION (2) --- (None) > --- UTILITY (2) ------ Medium Storage Unit > --- WEAPON (2) ------- (None) > --- INVENTORY (10) --- Light Treads Light Treads Light Treads Improved Heat Sink High-capacity Storage Unit Medium Laser Medium Laser Improved Light Cannon Mining Laser Peak State ------------ > --- POWER ------------ Ion Engine > --- PROPULSION ------- Light Treads Light Treads > --- UTILITY ---------- Medium Storage Unit Improved Terrain Scanner > --- WEAPON ----------- Improved Light Cannon Improved Light Cannon > --- INVENTORY -------- Light Ion Engine Light Treads Light Treads Wheel Wheel Compact Wheel Medium Laser Medium Laser Light Assault Rifle Mining Laser [Rating: 12] Favorites ----------- Power Ion Engine Engine Ion Engine Propulsion Wheel Treads Light Treads Wheel Wheel Utility Improved Terrain Scanner Device Improved Terrain Scanner Storage Medium Storage Unit Protection Weapon Shielding Weapon Improved Light Cannon Energy Gun Medium Laser Ballistic Gun Light Assault Rifle Ballistic Cannon Improved Light Cannon Build | -11 -10 -10 ------- Run | Scr Mat Min Slots Evolved . | . . . Power . | . . . Propulsion . | . . . Utility . | . . . Weapon . | . . . Parts Attached 36 | 8 27 1 Power 3 | 1 2 . Engine 3 | 1 2 . Core . | . . . Reactor . | . . . Propulsion 21 | 3 17 1 Treads 9 | . 9 . Leg . | . . . Wheel 12 | 3 8 1 Hover . | . . . Flight . | . . . Utility 5 | 2 3 . Device 2 | 1 1 . Storage 2 | 1 1 . Processor . | . . . Hackware . | . . . Protection 1 | . 1 . Artifact . | . . . Weapon 7 | 2 5 . Energy Gun 1 | 1 . . Energy Cannon . | . . . Ballistic Gun 3 | 1 2 . Ballistic Cannon 3 | . 3 . Launcher . | . . . Special Weapon . | . . . Impact Weapon . | . . . Slashing Weapon . | . . . Piercing Weapon . | . . . Special Melee Weapon . | . . . Unidentified Prototypes . | . . . Parts Lost 9 | . 2 7 Power 2 | . 1 1 Propulsion 4 | . 1 3 Utility 1 | . . 1 Weapon 2 | . . 2 Highest Loss Streak 7 | . 2 7 To Critical Strikes 1 | . . 1 Average Slot Usage (%) 98 | . 99 80 Engine 13 | . 14 9 Treads 5 | . 5 . Wheel 21 | . 21 23 Device 13 | . 13 14 Storage 14 | . 14 14 Energy Gun 6 | . 7 . Ballistic Gun 9 | . 9 14 Ballistic Cannon 11 | . 11 4 Naked Turns . | . . . Heaviest Build 24 | 12 24 19 Greatest Support 40 | 20 40 26 Greatest Overweight (x) 1 | . 1 . Average Overweight (x) . | . . . Largest Inventory Capacity 10 | 8 10 10 Average Capacity 8 | 5 9 10 Most Carried 10 | 6 10 10 Average Carried 8 | 4 9 9 Final Capacity 10 | 8 10 10 Final Carried 10 | 6 10 9 Class Distribution -------------------- 64% | Mutant 35% | Scavenger-Mutant Dominant Class ---------------- Mutant | -10/Materials Mutant | -10/Mines Resources | -11 -10 -10 ----------- Run | Scr Mat Min Matter Collected 736 | 227 496 13 Remotely . | . . . Salvage Created 361 | 18 343 . Parts 27 | 4 23 . Haulers Intercepted 2 | . 2 . Recyclers Shooed 1 | 1 . . Parts Field Recycled . | . . . Retrieved Matter . | . . . Parts Self-Destructed . | . . . Prevented . | . . . Kills | -11 -10 -10 ------- Run | Scr Mat Min Combat Hostiles Destroyed 10 | . 10 . Guns 3 | . 3 . Cannons 7 | . 7 . Classes Destroyed 4 | 1 3 . Tunneler 1 | 1 . . Hauler 2 | . 2 . Swarmer 2 | . 2 . Grunt 8 | . 8 . Best Kill Streak 4 | 1 4 . Combat Bots Only 4 | . 4 . Max Kills in Single Turn 1 | 1 1 . Gunslinging . | . . . Exploded . | . . . Melee . | . . . Uniques/NPCs Destroyed . | . . . Combat | -11 -10 -10 -------- Run | Scr Mat Min Damage Taken 958 | . 604 354 Core 250 | . 96 154 Absorbed by Shields . | . . . Redirected to Shielding 3 | . 3 . Core Remaining (%) 100 | 100 . . Volleys Fired 57 | 12 43 2 Largest 2 | 2 2 2 Hottest 89 | 70 89 59 Shots Fired 113 | 24 85 4 Gun 61 | 24 35 2 Cannon 52 | . 50 2 Launcher . | . . . Special . | . . . Kinetic 85 | 12 69 4 Thermal 28 | 12 16 . Explosive . | . . . Electromagnetic . | . . . Robot Hit Streak 6 | 4 6 2 Robot Miss Streak 4 | 3 4 2 Penetration Max . | . . . Secondary Targets . | . . . Shots Hit Robots 59 | 12 45 2 Core Hits 23 | 4 19 . Critical Kills . | . . . Critical Parts Destroyed . | . . . Critical Strikes 2 | . 2 . Burn 1 | . 1 . Blast 1 | . 1 . Melee Attacks . | . . . Impact . | . . . Slashing . | . . . Piercing . | . . . Sneak Attacks . | . . . Combat Hostiles . | . . . Follow-up Attacks . | . . . Damage Inflicted 954 | 112 812 30 Guns 343 | 112 224 7 Cannons 611 | . 588 23 Explosions . | . . . Melee . | . . . Ramming . | . . . Kinetic 770 | 64 676 30 Thermal 184 | 48 136 . Explosive . | . . . Electromagnetic . | . . . Impact . | . . . Slashing . | . . . Piercing . | . . . Highest Corruption . | . . . Average Corruption . | . . . Corruption Purged . | . . . Corruption Blocked . | . . . Overload Shots . | . . . Overflow Damage 23 | . 23 . Projectiles 23 | . 23 . Explosions . | . . . Melee . | . . . Knockbacks 7 | . 7 . Impact . | . . . Kinetic 7 | . 7 . Secondary . | . . . Self-Inflicted Damage . | . . . Shots . | . . . Rammed . | . . . Targets Rammed . | . . . Kicked . | . . . Crushed . | . . . Highest Temperature 265 | 130 265 78 Average Temperature 80 | 63 86 42 Received Heat Transfer 520 | . 300 220 Effects 3 | . 3 . Energy Bleed 1 | . 1 . Interference 2 | . 2 . Siege Activations . | . . . Robots Corrupted . | . . . Combat Hostiles . | . . . Parts Fried . | . . . Impact Corruptions . | . . . Robots Melted . | . . . Combat Hostiles . | . . . Parts Melted 1 | . 1 . Heat Transferred 629 | 148 481 . Parts Sabotaged . | . . . Parts Stolen . | . . . Parts Stripped . | . . . Power Chain Reactions . | . . . Missiles Intercepted . | . . . Alert | -11 -10 -10 ------- Run | Scr Mat Min Peak Influence 259 | 5 259 93 Initial 93 | . 3 93 Average 101 | 1 115 73 Maximum Alert Level 1 | . 1 . Low Security (%) 85 | 100 82 100 Level 1 14 | . 17 . Level 2 . | . . . Level 3 . | . . . Level 4 . | . . . Level 5 . | . . . High Security . | . . . Max Security . | . . . Squads Dispatched 6 | . 6 . Investigation 4 | . 4 . Extermination . | . . . Reinforcement 2 | . 2 . Assault . | . . . Garrison . | . . . Intercept . | . . . Searches Triggered . | . . . Construction Impeded . | . . . Haulers Reinforced . | . . . Active Scanning Responses . | . . . Cargo Convoy Interrupts . | . . . Stealth | -11 -10 -10 --------- Run | Scr Mat Min Distress Signals 3 | . 3 . Communications Jammed . | . . . Distress Signals . | . . . Times Spotted 37 | . 24 13 Peak Tracking Total 12 | . 5 12 Tactical Retreats 3 | . 3 . Traps | -11 -10 -10 ------- Run | Scr Mat Min Traps Triggered 1 | . 1 . Indirectly . | . . . Trap Hack Attempts . | . . . Triggered . | . . . Disarmed . | . . . Reprogrammed . | . . . Reused . | . . . Traps Extracted . | . . . Installed . | . . . Triggered . | . . . Machines | -11 -10 -10 ---------- Run | Scr Mat Min Machines Disabled . | . . . Max in Single Turn . | . . . Machines Sabotaged . | . . . Garrisons Compromised . | . . . Overloaded Fab Kills . | . . . Hacking | -11 -10 -10 --------- Run | Scr Mat Min Machines Accessed 8 | . 8 . Terminals 6 | . 6 . Fabricators . | . . . Repair Stations . | . . . Recycling Units 2 | . 2 . Scanalyzers . | . . . Garrison Access . | . . . Total Hacks 21 | . 21 . Successful 11 | . 11 . Failed 9 | . 9 . Catastrophic . | . . . Database Lockouts 1 | . 1 . Manual 19 | . 19 . Terminals 18 | . 18 . Fabricators . | . . . Repair Stations . | . . . Recycling Units 3 | . 3 . Scanalyzers . | . . . Garrison Access . | . . . Terminal Hacks 5 | . 5 . Robot Analysis 2 | . 2 . Prototype ID Bank 2 | . 2 . Terminal Index 1 | . 1 . Fabricator Hacks . | . . . Repair Station Hacks . | . . . Recycling Unit Hacks . | . . . Scanalyzer . | . . . Garrison Access Hacks . | . . . Unauthorized Hacks 6 | . 6 . Terminals 4 | . 4 . Track 1 | . 1 . Assimilate 1 | . 1 . Botnet 2 | . 2 . Fabricators . | . . . Repair Stations . | . . . Recycling Units 2 | . 2 . Tunnel 2 | . 2 . Scanalyzers . | . . . Garrison Access . | . . . Data Cores Recovered . | . . . Used . | . . . Hacking Detections 6 | . 6 . Full Trace Events 2 | . 2 . Feedback Events . | . . . Feedback Blocked . | . . . Robot Schematics Acquired . | . . . Robots Built . | . . . Authchips . | . . . Time . | . . . Total Robot Build Rating . | . . . Part Schematics Acquired . | . . . Parts Built . | . . . Authchips . | . . . Time . | . . . Total Part Build Rating . | . . . Parts Repaired . | . . . Time . | . . . Parts Recycled . | . . . Recycled Matter . | . . . Retrieved Matter . | . . . Retrieved Components . | . . . Parts Scanalyzed . | . . . Part Schematics Acquired . | . . . Parts Damaged . | . . . Bothacking | -11 -10 -10 ------------ Run | Scr Mat Min Used RIF Installer . | . . . Robots Hacked . | . . . Non-combat . | . . . Combat . | . . . Robot Hacks Applied . | . . . Relay Couplers Released . | . . . Fabnet Peak Effective % . | . . . Robots Rewired . | . . . Allies Hacked . | . . . Hacks Repelled . | . . . Allies | -11 -10 -10 -------- Run | Scr Mat Min Total Allies 1 | . 1 . Largest Group 1 | . 1 . Highest-Rated Group 10 | . 10 . Highest-Rated Ally 10 | . 10 . Total Orders . | . . . Ally Attacks . | . . . Total Damage . | . . . Kills . | . . . Allies Corrupted . | . . . Allies Melted . | . . . Intel | -11 -10 -10 ------- Run | Scr Mat Min Robot Analysis Total 2 | . 2 . Derelict Logs Recovered . | . . . Drone Launches . | . . . Drone Recoveries . | . . . Exploration | -11 -10 -10 ------------- Run | Scr Mat Min Turns Passed 731 | 82 622 27 Spaces Moved 590 | 45 523 22 Core 20 | 20 . . Treads 12 | . 12 . Legs . | . . . Wheels 558 | 25 511 22 Hover . | . . . Flight . | . . . Fastest Speed 50 | 50 80 80 Average Speed 84 | 66 85 89 Slowest Speed 160 | 80 160 100 Overloaded Moves . | . . . Propulsion Burnouts . | . . . Robots Hopped . | . . . Cave-ins Triggered . | . . . Exploration Rate (%) 30 | 3 81 8 Regions Visited 2 Branch Regions 1 Pre-discovered Areas 2 | . 2 . Known Exits Taken . | . . . Unknown Exits Taken 2 | 1 1 . Scrap Searched . | . . . Spaces Dug . | . . . Terrain Destroyed . | . . . Melee . | . . . Projectile . | . . . AOE . | . . . Terrain Rammed . | . . . Walls Destroyed . | . . . Machines Disabled . | . . . Actions | -11 -10 -10 --------- Run | Scr Mat Min Total 707 | 73 609 25 Wait 1 | . 1 . Move 588 | 44 522 22 Hop . | . . . Pick Up 18 | 8 10 . Fast Attach 5 | 5 . . Attach 5 | 2 2 1 Detach . | . . . Swap 26 | 1 25 . Drop 7 | 1 6 . Fire 57 | 12 43 2 Melee . | . . . Ram . | . . . Kick . | . . . Crush . | . . . Escape Stasis . | . . . Rewire . | . . . Trap . | . . . Miscellaneous . | . . . Route ------- -11/Scrapyard -10/Materials (discovered 3 exits: [*Mat x2] / [*Min]) -10/Mines History --------- Turn | Location | Event 13 | -11/Scrapyard | Discovered new exit (range 16) 83 | -11/Scrapyard | Entered Materials 203 | -10/Materials | Discovered new exit (range 10) 521 | -10/Materials | Discovered new exit (range 4) 643 | -10/Materials | Discovered new exit (range 16) 661 | -10/Materials | Central database locked down 705 | -10/Materials | Entered Mines 706 | -10/Mines | Assembled infested the area 711 | -10/Mines | Assisted by a Guerilla fighting off Assembled 718 | -10/Mines | Core integrity fell below 50% 731 | -10/Mines | Core integrity fell below 20% 732 | -10/Mines | Destroyed by as-34149 with Assembled F-torch Last Messages --------------- 00712_ as-06965 suffers critical hit (Destroy). 00712_ as-06965 knocked back. 00714_ Critical hit (Burn: +80). 00714_ Critical hit (Destroy). 00714_ Imp. Light Cannon destroyed. 00714_ Wheel destroyed. 00716_ HV Slug penetrates as-17640. 00716_ as-17640 suffers critical hit (Destroy). 00716_ as-73926 suffers critical hit (Destroy). 00716_ as-73926 destroyed. 00716_ LC-5GA(h) system corrupted by crushing effect. 00717_ Acquired 4 matter. 00717_ LC-5GA(h) system terminally corrupted. 00725_ Lgt. Ion Engine destroyed. 00725_ Wheel destroyed. 00726_ Knocked back. 00729_ Acquired 9 matter. 00731_ Lgt. Assault Rifle destroyed. 00731_ Com. Wheel destroyed. 00732_ Imp. Terrain Scanner destroyed. Map ----- +----------------------------------------------------+ | | | | | | | | | | | | | | | | | | | | | | | | | ??????????????????????????????#??????????????????? | | ?????????????????????????????????#???????????????? | | ?????????????????????????????????????????????????? | | ?????????????????????#???????????????????????????? | | ?????????????????????????#?????##????????????????? | | ???????????????????????#?????#####???????????????? | | ??????????????????#????#????## ###?????????????? | | ???????????????????????????## #?????????????? | | ???????????????????????????# % #?????????????? | | ???????????????????????????#aa a #?????????????? | | ???????????????????????#?### a ## ##?????????????? | | ????????????????????????##aa%#### #??????????????? | | ?????????????????### ### a##??# #??????????????? | | ??????????????????# aa@ a#???# #??????????????? | | ??????????? a a #??# #??????????????? | | ???????????# ???? ???? ????? | | ???????????## ??????????????? | | ????????????## ## ###### ????????????? | | ????????????### ??# ##????# ?#????????? | | ??????????????####???# #????? ??##??????????? | | ?????????????????????;; ##?????? ##?????????????? | | ????????????????????# ###???????? ???????????????? | | ????????????????????##?????????? #???????????????? | | ?????????????????????????????????????????????????? | | ?????????????????????????????????????????????????? | | ???????????????????????????#?????????????????????? | | ?????????????????????????????????????????????????? | | ?????????????????????????????????????????????????? | | ?????????????????????????????????????????????????? | | ?????????????????????????????????????????????????? | | ?????????????????????????????????????????????????? | | ?????????????????????????????????????????????????? | | ?????????????????????????????????????????????????? | | ?????????????????????????????????????????????????? | | ?????????????????????????????????????????????????? | | ?????????????????????????????????????????????????? | | ?????????????????????????????????????????????????? | | ?????????????????????????????????????????????????? | +----------------------------------------------------+ Best States ------------- Heat Dissipation 25 Energy Generation 10 Energy Capacity 250 Matter Stores 265 Matter Capacity 300 Sight Range 16 Terrain Scan Range 16 Terrain Scan Density 10 Weapon Shielding 33 Evasion (%) 50 Recoil Reduction 2 Item Schematics ----------------- None Robot Schematics ------------------ None Fabricated ------------ Nothing Alien Tech Used ----------------- None Achievements -------------- None Challenges ------------ None Game ------ Seed DynamicAccelerationThruster Manual? 0 Play Time 00:13:04 Cumulative 718.0 hours Start 2022.07.03 @ 09:44:15 End 2022.07.03 @ 09:56:29 Sessions 1 Manual Loads 0 Difficulty Rogue Special Mode None Game No. 382 Rogue 255 Adventurer 125 Explorer 2 Win Type - Total 84 Types 72/5/4/1/1/0/0/0/1 Lore% 82 Gallery% 89 Achievement% 76 Wizard Run 0 Options --------- ASCII 0 Keyboard 1 Movement Numpad Keybinds 0 Fullscreen 1 Font 36/TerminusFine Map View 76x50 Tactical HUD 1 Map Filters NONE Filters NONE Steam 1 RUN: a0448d6e-49e3-47f5-98b4-8f11cf1b7d92